bitfinex/quotes_SOLUSD_20240712
["timestamp","ask_amount","ask_price","bid_price","bid_amount"]
[1720745905189,29.04,136.12,136.08,7.3483]
[1720745905401,51.08,136.12,136.05,10.0]
[1720745905707,7.3473,136.11,136.05,7.35]
[1720745906093,29.04,136.1,136.06,10.0]
[1720745906298,18.3663,136.12,136.01,7.39576611]
[1720745906299,29.3895,136.07,136.01,7.39576611]
[1720745906493,29.04,136.06,136.02,7.3516]
[1720745906691,51.08,136.06,136.01,10.04356611]
[1720745906898,51.08,136.06,136.02,7.3517]
[1720745907095,20.17,136.11,136.01,10.04356611]
[1720745907414,36.3891,136.07,136.02,7.3513]
[1720745907712,29.39,136.06,136.01,0.04356611]
[1720745908290,0.17,136.1,136.01,0.04356611]
[1720745908291,58.4307,136.05,136.01,0.04356611]
[1720745908491,51.08,136.05,136.01,0.04356611]
[1720745908712,22.04,136.03,136.01,0.04356611]
[1720745909021,29.3908,136.04,136.01,0.04356611]
[1720745909219,29.3918,136.02,136.01,0.04356611]
[1720745909528,29.5618,136.02,136.01,0.04356611]
[1720745909816,7.3513,136.03,136.01,0.04356611]
[1720745910126,22.04,136.03,136.01,0.04356611]
[1720745911204,29.3918,136.03,136.01,0.04356611]
[1720745911707,22.04,136.03,136.01,0.04356611]
[1720745912914,22.04,136.04,136.01,0.04356611]
[1720745913426,29.3909,136.04,136.01,0.04356611]
[1720745913595,7.3513,136.03,136.01,0.04356611]
[1720745913920,29.3918,136.02,136.01,0.04356611]
[1720745914102,29.5618,136.02,136.01,0.04356611]
[1720745914306,22.04,136.02,136.01,0.04356611]
[1720745914600,22.04,136.03,136.01,0.04356611]
[1720745914994,22.04,136.02,136.01,0.04356611]
[1720745915213,29.3918,136.02,136.01,0.04356611]
[1720745915421,29.5618,136.02,136.01,0.04356611]
[1720745915918,49.5618,136.02,136.01,0.04356611]
[1720745916117,49.7318,136.02,136.01,0.04356611]
[1720745919022,42.04,136.02,136.01,0.04356611]
[1720745919724,49.3918,136.02,136.01,0.04356611]
[1720745920904,42.04,136.02,136.01,0.04356611]
[1720745921408,22.04,136.02,136.01,0.04356611]
[1720745921726,29.3913,136.03,136.01,0.04356611]
[1720745922019,31.04288907,136.06,136.01,0.04356611]
[1720745922020,29.3918,136.02,136.01,0.04356611]
[1720745922802,34.70758907,136.06,136.01,0.04356611]
[1720745923000,7.3487,136.08,136.02,7.3517]
[1720745923208,7.3497,136.06,136.01,23.16696611]
[1720745923523,23.0322,136.11,136.01,23.16696611]
[1720745923524,18.3693,136.1,136.01,23.16696611]
[1720745923707,18.3693,136.1,136.01,15.81486611]
[1720745924019,29.39,136.06,136.01,15.81486611]
[1720745924210,29.3903,136.05,136.01,15.81486611]
[1720745924615,7.3498,136.06,136.01,15.81486611]
[1720745924820,29.3904,136.05,136.01,15.81486611]
[1720745925199,7.3495,136.07,136.01,23.16716611]
[1720745925418,0.17,136.08,136.01,23.16716611]
[1720745925631,32.94,136.08,136.01,15.81486611]
[1720745925810,7.3504,136.05,136.01,15.81486611]
[1720745926125,22.04,136.05,136.01,15.81486611]
[1720745926321,29.3902,136.05,136.01,15.81486611]
[1720745927405,22.21,136.07,136.01,0.04356611]
[1720745927724,22.21,136.07,135.97,10.0]
[1720745927725,29.3925,136.01,135.97,10.0]
[1720745928024,7.353,136.0,135.95,17.3555]
[1720745928326,7.353,136.0,135.95,10.0]
[1720745929204,7.353,136.0,135.94,14.6710264]
[1720745929205,7.3536,135.99,135.94,7.3153264]
[1720745929400,22.04,136.0,135.94,7.3153264]
[1720745929401,29.393,136.0,135.94,13.6713264]
[1720745929632,29.393,136.0,135.94,6.3153264]
[1720745929931,7.3534,135.99,135.94,13.6711264]
[1720745930129,7.3534,135.99,135.94,6.3153264]
[1720745930431,29.3917,136.03,135.94,6.3153264]
[1720745930727,21.8041,136.05,135.95,17.3554]
[1720745930728,22.04,136.02,135.95,17.3554]
[1720745931033,7.353,136.0,135.95,10.0]
[1720745931231,29.393,136.0,135.95,10.0]
[1720745931429,29.393,136.0,135.94,13.6714264]
[1720745931722,29.393,136.0,135.95,7.3556]
[1720745931723,22.04,136.0,135.95,7.3556]
[1720745931929,20.0,136.01,135.96,7.3549]
[1720745932233,20.0,136.01,135.95,7.3555]
[1720745932234,7.3524,136.01,135.95,7.3555]
[1720745932421,0.17,136.03,135.95,10.0]
[1720745932620,18.5486,136.03,135.96,10.0]
[1720745932828,22.04,136.01,135.96,10.0]
[1720745933137,22.04,136.01,135.94,6.3153264]
[1720745933138,7.3543,135.98,135.94,6.3153264]
[1720745933429,22.04,135.99,135.94,6.3153264]
[1720745933733,7.3546,135.97,135.92,26.5234]
[1720745934330,22.04,135.97,135.92,10.0]
[1720745934537,22.04,135.97,135.91,6.2983]
[1720745934834,7.3566,135.94,135.89,15.4543]
[1720745935007,40.427,135.97,135.89,15.4543]
[1720745935008,7.3557,135.95,135.89,32.8131]
[1720745935334,29.3946,135.97,135.9,10.0]
[1720745935508,20.0,135.96,135.92,7.3569]
[1720745935704,42.04,135.96,135.91,7.3577]
[1720745935937,42.04,135.96,135.92,7.3572]
[1720745935938,20.0,135.96,135.92,7.3572]
[1720745936123,22.04,135.95,135.9,10.0]
[1720745936433,27.3552,135.96,135.9,7.3583]
[1720745936640,20.0,135.96,135.91,7.3576]
[1720745937434,32.77,135.99,135.92,7.3571]
[1720745937609,18.3832,136.0,135.91,10.0]
[1720745937610,18.3832,136.0,135.91,17.3578]
[1720745937811,18.3832,136.0,135.9,17.3581]
[1720745938108,22.04,135.95,135.9,10.0]
[1720745938434,54.06610859,136.01,135.9,10.0]
[1720745938619,7.3559,135.95,135.9,10.0]
[1720745938822,45.34,136.0,135.9,10.0]
[1720745938823,7.3551,135.96,135.91,7.3577]
[1720745939130,29.3947,135.97,135.91,7.3577]
[1720745939327,29.3947,135.97,135.92,10.0]
[1720745939714,22.04,135.96,135.9,17.3582]
[1720745939922,7.3546,135.97,135.91,7.3577]
[1720745940139,7.3546,135.97,135.92,10.0]
[1720745940438,7.3557,135.95,135.9,17.3578]
[1720745940635,7.3557,135.95,135.9,10.0]
[1720745941132,29.3957,135.95,135.9,10.0]
[1720745941435,7.3562,135.94,135.9,10.0]
[1720745941621,29.3958,135.95,135.9,10.0]
[1720745941824,22.04,135.95,135.9,17.3583]
[1720745942026,22.04,135.95,135.89,25.4543]
[1720745942027,7.3538,135.99,135.93,7.3564]
[1720745942232,29.16,135.99,135.94,6.5856]
[1720745942424,22.04,136.01,135.97,17.3543]
[1720745942425,51.2,136.01,135.97,17.3543]
[1720745942735,29.16,136.01,135.97,10.0]
[1720745942938,36.5125,136.01,135.96,26.4178]
[1720745943336,29.16,136.03,135.97,10.0]
[1720745943524,29.3911,136.04,135.97,10.0]
[1720745943525,22.04,136.04,135.99,10.0]
[1720745943834,29.16,136.05,135.99,10.0]
[1720745944037,29.16,136.05,136.01,7.3519]
[1720745944236,7.3498,136.06,136.0,7.3527]
[1720745944535,7.3498,136.06,136.01,6.2761]
[1720745944737,7.3497,136.06,136.01,6.2761]
[1720745944924,7.3493,136.07,136.01,6.2761]
[1720745945328,7.3488,136.08,136.02,10.0]
[1720745945527,40.37469625,136.11,136.02,25.3677]
[1720745945835,7.3474,136.11,136.05,7.3501]
[1720745946230,22.04,136.12,136.05,7.3501]
[1720745946428,30.83785092,136.11,136.04,17.3506]
[1720745946744,18.3669,136.12,136.04,10.0]
[1720745946937,8.79796864,136.11,136.03,10.0]
[1720745947140,20.0,136.11,136.03,20.0]
[1720745947341,7.3481,136.09,136.03,17.3509]
[1720745947540,42.04,136.11,135.96,20.0]
[1720745947541,22.04,136.04,135.96,20.0]
[1720745947741,20.0,136.03,135.97,10.0]
[1720745948037,20.0,136.03,135.99,10.0]
[1720745948251,7.3492,136.07,136.01,10.0]
[1720745948434,7.3492,136.07,136.01,27.3522]
[1720745948739,7.3487,136.08,136.02,7.3518]
[1720745948918,7.3478,136.1,136.04,7.3503]
[1720745949235,22.04,136.1,136.03,10.0]
[1720745949452,7.3482,136.09,136.03,7.3511]
[1720745949915,7.3481,136.09,136.03,17.3512]
[1720745950312,7.3477,136.1,136.05,10.0]
[1720745950530,29.3877,136.1,136.05,10.0]
[1720745951517,7.62218864,136.14,136.03,7.3511]
[1720745951518,7.3485,136.09,136.03,7.3511]
[1720745951844,22.04,136.08,136.0,22.3501]
[1720745952041,22.04,136.09,136.01,10.0]
[1720745952247,42.04,136.08,136.01,17.3523]
[1720745952541,7.3509,136.04,136.0,32.3501]
[1720745952746,0.17,136.07,135.97,7.3543]
[1720745952917,7.3494,136.07,136.01,7.3523]
[1720745953118,20.0,136.06,136.01,7.3523]
[1720745953339,20.0,136.06,136.03,7.3512]
[1720745953543,20.0,136.08,136.03,7.3512]
[1720745954042,19.5,136.08,136.03,7.3512]
[1720745954347,7.3501,136.06,136.02,10.0]
[1720745954641,7.3498,136.06,136.02,10.0]
[1720745954848,7.3493,136.07,136.02,10.0]
[1720745955143,19.5,136.08,136.03,7.3508]
[1720745955444,54.79,136.12,136.05,21.5356]
[1720745955643,30.83862702,136.11,136.05,21.5356]
[1720745955936,0.17,136.13,136.05,21.5356]
[1720745956252,7.3471,136.11,136.05,21.5356]
[1720745956427,7.3471,136.11,136.05,28.8856]
[1720745956622,7.3476,136.1,136.05,28.8856]
[1720745957444,7.3476,136.1,136.06,10.0]
[1720745957655,7.3468,136.12,136.08,10.0]
[1720745957824,40.4022,136.15,136.08,10.0]
[1720745958151,16.14369203,136.14,136.09,10.0]
[1720745958453,22.04,136.17,136.09,10.0]
[1720745958454,7.3459,136.13,136.09,10.0]
[1720745958634,7.3459,136.13,136.07,7.3489]
[1720745958635,40.401,136.16,136.07,20.0]
[1720745958836,7.3468,136.12,136.07,20.0]
[1720745959146,32.75,136.18,136.1,10.0]
[1720745959354,7.3448,136.15,136.1,10.0]
[1720745959526,7.3444,136.16,136.12,10.0]
[1720745959922,7.3439,136.17,136.12,10.0]
[1720745960432,7.3439,136.17,136.12,16.3125]
[1720745960631,7.3443,136.16,136.12,6.3125]
[1720745960944,40.3976,136.19,136.12,6.3125]
[1720745961145,22.04,136.17,136.12,6.3125]
[1720745961319,22.04,136.17,136.11,25.7102]
[1720745961524,40.3998,136.17,136.11,25.7102]
[1720745961749,7.3463,136.13,136.11,15.7102]
[1720745962053,40.4023,136.15,136.08,6.3125]
[1720745962253,22.04,136.17,136.08,33.6609]
[1720745962448,7.3458,136.14,136.08,33.6609]
[1720745963549,7.3446,136.16,136.1,27.3473]
[1720745963752,7.345,136.15,136.1,10.0]
[1720745963924,7.3453,136.14,136.1,10.0]
[1720745964124,7.3449,136.15,136.1,17.3474]
[1720745964628,7.3449,136.15,136.1,7.3474]
[1720745964830,22.04,136.16,136.08,26.3125]
[1720745965030,7.3454,136.14,136.08,33.6607]
[1720745965951,7.3464,136.12,136.08,16.3125]
[1720745966148,7.3471,136.11,136.08,6.3125]
[1720745966731,7.3475,136.1,136.08,6.3125]
[1720745966934,7.3471,136.11,136.08,6.3125]
[1720745967143,7.3465,136.12,136.08,6.3125]
[1720745967740,7.3471,136.11,136.08,6.3125]
[1720745967938,7.3483,136.09,136.07,15.7102]
[1720745968153,7.3484,136.09,136.05,6.2336]
[1720745968329,22.04,136.11,136.05,6.2336]
[1720745968531,7.3486,136.08,136.05,6.2336]
[1720745968857,7.3497,136.06,136.04,15.8684]
[1720745969327,40.4118,136.08,136.02,6.0559]
[1720745969529,7.3503,136.05,136.02,6.0559]
[1720745969953,42.04,136.07,135.99,32.3121]
[1720745970157,7.3503,136.05,135.99,32.3121]
[1720745970326,7.3503,136.05,135.99,39.6654]
[1720745970657,7.3507,136.04,135.99,39.6654]
[1720745970844,7.3504,136.05,135.99,39.6654]
[1720745972453,7.3516,136.03,135.99,22.3121]
[1720745972663,60.4132,136.07,135.99,22.3121]
[1720745972846,7.3503,136.05,135.99,39.6655]
[1720745973164,7.3497,136.06,136.0,7.3528]
[1720745973336,20.0,136.05,136.01,7.352]
[1720745973545,7.35,136.06,136.0,8.11693567]
[1720745973851,27.3504,136.05,136.0,0.76443567]
[1720745974040,7.3504,136.05,136.0,0.76443567]
[1720745974245,7.3498,136.06,136.0,8.11733567]
[1720745974534,7.3509,136.04,135.99,42.3121]
[1720745975035,7.3513,136.03,135.99,32.3121]
[1720745975231,7.3509,136.04,135.99,42.3121]
[1720745975454,27.3504,136.05,135.99,39.6654]
[1720745976159,20.0,136.05,136.0,7.3528]
[1720745976353,7.3492,136.07,136.02,10.0]
[1720745976546,20.0,136.06,136.02,10.0]
[1720745976747,20.0,136.06,136.01,7.3519]
[1720745976944,54.79,136.09,136.01,7.3519]
[1720745976945,27.48408609,136.13,136.02,10.0]
[1720745977160,7.3477,136.1,136.04,10.0]
[1720745977672,7.348,136.09,136.04,10.0]
[1720745977833,22.04,136.1,136.02,20.0]
[1720745978352,7.3481,136.09,136.03,52.3509]
[1720745978560,7.3493,136.07,136.02,10.0]
[1720745978869,7.3504,136.05,136.0,10.0]
[1720745979155,42.04,136.08,136.0,10.0]
[1720745979156,60.4123,136.08,136.0,10.0]
[1720745979358,7.3503,136.05,136.0,10.0]
[1720745979545,60.4123,136.08,136.01,10.0]
[1720745979546,7.3499,136.06,136.01,10.0]
[1720745979869,20.0,136.08,136.03,17.3509]
[1720745980156,60.4106,136.09,136.02,10.0]
[1720745980345,7.3506,136.05,136.02,10.0]
[1720745980664,7.3492,136.07,136.02,20.0]
[1720745980856,7.3498,136.06,136.02,10.0]
[1720745981063,7.3492,136.07,136.02,20.0]
[1720745981367,7.349,136.08,136.02,17.3517]
[1720745981542,27.3492,136.07,136.02,17.3517]
[1720745982468,20.0,136.07,136.02,17.3517]
[1720745982649,20.0,136.07,136.04,10.0]
[1720745982846,7.3484,136.09,136.04,10.0]
[1720745983041,27.3487,136.08,136.02,27.3514]
[1720745983253,7.3482,136.09,136.04,10.0]
[1720745983450,20.0,136.08,136.05,15.819]
[1720745983849,7.3476,136.1,136.06,16.2717]
[1720745984555,7.3475,136.1,136.06,16.2717]
[1720745984967,32.75,136.13,136.06,6.2717]
[1720745984968,7.3481,136.09,136.06,6.2717]
[1720745985157,7.3486,136.08,136.05,15.819]
[1720745985360,7.3482,136.09,136.05,15.819]
[1720745985665,7.3477,136.1,136.05,15.819]
[1720745985859,17.40577111,136.15,136.08,7.3483]
[1720745986049,7.3458,136.14,136.1,10.0]
[1720745986247,18.3603,136.17,136.1,6.1171]
[1720745986461,8.77307307,136.16,136.11,36.02462027]
[1720745986667,7.3439,136.17,136.12,1.46912074]
[1720745986856,16.11812272,136.16,136.11,80.448]
[1720745987045,7.3449,136.15,136.11,80.448]
[1720745987372,7.3441,136.17,136.12,1.46845659]
[1720745987579,7.3441,136.17,136.13,10.0]
[1720745987866,20.0,136.16,136.11,25.448]
[1720745988074,22.04,136.17,136.11,25.448]
[1720745988283,28.77510655,136.16,136.11,25.448]
[1720745988575,7.3454,136.14,136.11,25.448]
[1720745988947,7.345,136.15,136.11,15.448]
[1720745990672,8.77662153,136.14,136.1,6.1171]
[1720745990875,16.12262153,136.13,136.1,6.1171]
[1720745991169,7.3461,136.13,136.1,6.1171]
[1720745991552,7.3462,136.13,136.1,6.1171]
[1720745991746,22.04,136.13,136.06,10.0]
[1720745991950,27.3465,136.12,136.07,10.0]
[1720745992150,20.0,136.12,136.06,17.3494]
[1720745992357,20.0,136.12,136.09,7.3479]
[1720745992656,20.0,136.13,136.09,7.3479]
[1720745992860,20.0,136.13,136.08,17.3484]
[1720745993380,27.3461,136.13,136.07,17.3491]
[1720745993577,7.3465,136.12,136.07,17.3491]
[1720745993781,20.0,136.13,136.08,17.3484]
[1720745993968,22.04,136.17,136.09,17.3476]
[1720745994152,30.81899798,136.16,136.09,17.3476]
[1720745994476,7.3455,136.14,136.09,17.3476]
[1720745994661,7.346,136.13,136.08,10.0]
[1720745995068,7.3466,136.12,136.08,10.0]
[1720745995379,22.04,136.16,136.08,10.0]
[1720745995677,22.04,136.16,136.08,17.3482]
[1720745995678,7.3455,136.14,136.08,17.3482]
[1720745995868,20.0,136.13,136.08,17.3482]
[1720745996258,27.3459,136.13,136.08,17.3482]
[1720745997077,20.0,136.13,136.08,17.3482]
[1720745997283,7.3454,136.14,136.08,17.3482]
[1720745997456,20.0,136.13,136.08,17.3482]
[1720745998286,27.3461,136.13,136.08,10.0]
[1720745999453,7.3466,136.12,136.08,10.0]
[1720745999660,7.347,136.11,136.06,10.0]
[1720745999858,7.3466,136.12,136.06,27.3496]
[1720746000070,7.3471,136.11,136.06,27.3496]
[1720746000379,7.3467,136.12,136.07,7.349]
[1720746000583,20.0,136.11,136.04,20.0]
[1720746000880,27.3461,136.13,136.07,10.0]
[1720746001057,7.3465,136.12,136.07,10.0]
[1720746001265,42.04,136.13,136.06,10.0]
[1720746001467,7.3466,136.12,136.06,17.3492]
[1720746001671,27.346,136.13,136.08,10.0]
[1720746001872,20.0,136.13,136.08,20.0]
[1720746002178,7.3453,136.15,136.1,7.3473]
[1720746002390,16.10862781,136.14,136.09,29.4436]
[1720746002557,7.3456,136.14,136.09,29.4436]
[1720746002753,7.60317474,136.19,136.12,20.0]
[1720746002963,7.3423,136.2,136.12,20.0]
[1720746003166,18.3533,136.22,136.14,7.3451]
[1720746003360,7.3429,136.19,136.14,7.3451]
[1720746003561,7.3432,136.18,136.13,7.3457]
[1720746003790,22.04,136.18,136.09,22.0958]
[1720746003954,7.3444,136.16,136.11,7.3468]
[1720746004157,60.90677607,136.2,136.12,17.3463]
[1720746004360,7.3447,136.16,136.1,27.3475]
[1720746004560,7.3439,136.17,136.11,7.3466]
[1720746004861,20.0,136.19,136.1,27.3472]
[1720746005071,7.3447,136.16,136.1,27.3472]
[1720746005573,7.3453,136.15,136.09,29.4438]
[1720746005776,7.3449,136.15,136.09,29.4438]
[1720746005973,7.3444,136.16,136.1,17.3473]
[1720746006177,7.3438,136.17,136.12,10.0]
[1720746006571,7.3432,136.18,136.13,17.3458]
[1720746006769,20.0,136.17,136.13,17.3458]
[1720746007686,7.3447,136.16,136.13,10.0]
[1720746007891,7.3447,136.16,136.1,27.3474]
[1720746008066,27.3438,136.17,136.12,10.0]
[1720746008262,20.0,136.17,136.12,10.0]
[1720746008589,22.04,136.17,136.1,10.0]
[1720746008885,20.0,136.19,136.12,10.0]
[1720746009086,7.3439,136.17,136.12,10.0]
[1720746009272,7.3452,136.15,136.1,10.0]
[1720746009461,7.3452,136.15,136.1,20.0]
[1720746009783,7.3445,136.16,136.1,27.3473]
[1720746011079,42.04,136.15,136.09,22.0958]
[1720746011284,20.0,136.15,136.1,10.0]
[1720746011473,20.0,136.15,136.1,17.3472]
[1720746011667,20.0,136.15,136.1,10.0]
[1720746012175,27.3448,136.15,136.1,17.3473]
[1720746012379,20.0,136.15,136.1,17.3473]
[1720746012687,7.3435,136.18,136.11,10.0]
[1720746012879,7.3437,136.17,136.12,7.3463]
[1720746013295,51.1065,136.2,136.13,20.0]
[1720746013296,7.3433,136.18,136.13,20.0]
[1720746013581,30.99612481,136.23,136.15,10.0]
[1720746014176,22.04,136.21,136.14,22.6947]
[1720746014358,7.3437,136.17,136.14,22.6947]
[1720746014569,7.3431,136.19,136.14,30.04]
[1720746014773,7.3422,136.2,136.15,10.0]
[1720746014998,7.3422,136.2,136.15,17.3447]
[1720746015197,7.3422,136.2,136.15,27.3447]
[1720746015375,7.3412,136.22,136.17,10.0]
[1720746015797,32.75,136.24,136.17,10.0]
[1720746015995,32.75,136.24,136.15,20.0]
[1720746016201,7.3422,136.2,136.16,45.0]
[1720746016504,7.3429,136.19,136.15,10.0]
[1720746016879,7.3429,136.19,136.14,30.04]
[1720746017376,7.3429,136.19,136.14,22.6947]
[1720746017695,32.75,136.24,136.14,22.6947]
[1720746017909,42.04,136.23,136.15,20.0]
[1720746018198,7.3423,136.2,136.15,20.0]
[1720746018504,7.3413,136.22,136.17,10.0]
[1720746018706,32.75,136.24,136.17,17.3433]
[1720746018707,7.3406,136.23,136.17,17.3433]
[1720746018912,73.1405,136.24,136.15,27.3447]
[1720746019206,73.1405,136.24,136.16,45.0]
[1720746019375,18.3532,136.22,136.15,10.0]
[1720746019574,7.3438,136.17,136.14,22.6947]
[1720746019773,7.3434,136.18,136.14,22.6947]
[1720746020175,7.3428,136.19,136.14,22.6947]
[1720746020900,7.3434,136.18,136.14,22.6947]
[1720746021280,7.345,136.15,136.11,22.2445]
[1720746021478,7.3457,136.14,136.11,22.2445]
[1720746021699,7.346,136.13,136.11,22.2445]
[1720746022397,7.3454,136.14,136.11,16.1336]
[1720746022874,7.345,136.15,136.11,16.1336]
[1720746023078,20.0,136.14,136.11,16.1336]
[1720746023592,20.0,136.14,136.11,23.4805]
[1720746023900,7.3433,136.18,136.12,27.3462]
[1720746024084,7.3433,136.18,136.13,7.3459]
[1720746024402,22.04,136.2,136.14,17.3453]
[1720746024605,32.75,136.22,136.14,20.0]
[1720746024779,7.3421,136.2,136.15,13.7705]
[1720746025401,7.3421,136.2,136.16,10.0]
[1720746025784,32.75,136.22,136.15,6.426]
[1720746025785,7.3427,136.19,136.15,6.426]
[1720746025990,7.3437,136.17,136.15,6.426]
[1720746026508,7.3446,136.16,136.11,16.1336]
[1720746027082,22.04,136.23,136.16,10.0]
[1720746027283,7.3413,136.22,136.16,17.344]
[1720746027589,7.3413,136.22,136.16,7.344]
[1720746027901,7.3417,136.21,136.16,13.9288]
[1720746028404,7.3412,136.22,136.17,7.3437]
[1720746028606,20.0,136.21,136.17,7.3437]
[1720746028784,20.0,136.21,136.18,15.4412]
[1720746028985,7.59332331,136.27,136.18,25.4412]
[1720746029202,7.3398,136.25,136.2,17.3421]
[1720746029700,7.3388,136.27,136.21,0.49455316]
[1720746030287,7.3388,136.27,136.21,17.83585316]
[1720746030905,8.1927264,136.28,136.22,16.4804]
[1720746031107,7.3383,136.27,136.22,6.4804]
[1720746031319,7.3389,136.26,136.22,6.4804]
[1720746031503,7.3384,136.27,136.22,6.4804]
[1720746031710,7.3384,136.27,136.22,13.8213]
[1720746032088,7.3384,136.27,136.22,6.4804]
[1720746032420,7.3389,136.26,136.22,6.4804]
[1720746032588,7.3385,136.27,136.22,6.4804]
[1720746032896,7.3385,136.27,136.22,16.4804]
[1720746033093,7.3385,136.27,136.22,23.8212]
[1720746033893,7.3385,136.27,136.22,6.4804]
[1720746034304,0.8544264,136.28,136.22,16.4804]
[1720746034513,20.8544264,136.28,136.23,7.3404]
[1720746034924,28.1923264,136.28,136.23,7.3404]
[1720746035101,20.8544264,136.28,136.22,6.4804]
[1720746035308,42.8944264,136.28,136.18,31.6389]
[1720746035610,7.3389,136.26,136.21,7.3415]
[1720746035819,7.3389,136.26,136.2,27.3419]
[1720746036000,7.3395,136.25,136.2,7.3419]
[1720746036407,7.3395,136.25,136.2,27.3419]
[1720746036605,7.3391,136.26,136.2,27.3419]
[1720746036789,7.3402,136.24,136.18,38.9817]
[1720746036991,20.0,136.23,136.19,7.3425]
[1720746037221,20.0,136.23,136.18,38.9819]
[1720746037821,7.3417,136.21,136.16,10.0]
[1720746038126,20.0,136.2,136.12,20.0]
[1720746038410,7.3436,136.18,136.12,27.3462]
[1720746038724,7.3428,136.19,136.13,7.3458]
[1720746039013,20.0,136.18,136.13,7.3458]
[1720746039211,20.0,136.18,136.15,10.0]
[1720746039420,20.0,136.18,136.17,7.3437]
[1720746039629,7.341,136.22,136.17,10.0]
[1720746039922,7.3417,136.21,136.17,10.0]
[1720746040106,7.3411,136.22,136.17,10.0]
[1720746040300,7.3417,136.21,136.16,10.0]
[1720746040510,7.3417,136.21,136.17,10.0]
[1720746040902,7.3412,136.22,136.17,17.3434]
[1720746041226,7.59517815,136.27,136.19,10.0]
[1720746041404,7.59517815,136.27,136.19,17.3426]
[1720746041717,7.59517815,136.27,136.18,17.343]
[1720746041918,22.04,136.26,136.18,17.343]
[1720746042093,7.3412,136.22,136.17,17.3435]
[1720746042289,7.3412,136.22,136.17,10.0]
[1720746042514,7.3416,136.21,136.17,10.0]
[1720746042715,7.3416,136.21,136.16,7.3442]
[1720746043019,40.3901,136.24,136.15,26.5696]
[1720746043221,7.3422,136.2,136.15,26.5696]
[1720746043807,7.3418,136.21,136.15,43.9142]
[1720746044007,7.3418,136.21,136.16,7.3441]
[1720746044722,36.3918,136.21,136.16,7.3441]
[1720746044909,51.09,136.21,136.15,26.5696]
[1720746045095,7.3433,136.18,136.15,26.5696]
[1720746045302,7.3432,136.18,136.15,26.5696]
[1720746045529,29.05,136.19,136.15,16.5696]
[1720746045693,29.05,136.17,136.14,6.2108]
[1720746045899,36.3941,136.17,136.14,6.2108]
[1720746046118,29.05,136.15,136.12,15.0388]
[1720746048129,29.05,136.15,136.12,22.3851]
[1720746048622,22.04,136.2,136.13,17.3456]
[1720746048823,18.3553,136.21,136.12,32.385]
[1720746048824,42.04,136.19,136.12,32.385]
[1720746049011,7.3442,136.17,136.12,25.0388]
[1720746049212,20.0,136.19,136.13,10.0]
[1720746049213,7.3433,136.18,136.13,10.0]
[1720746049528,20.0,136.17,136.13,10.0]
[1720746049718,7.3426,136.19,136.14,7.3449]
[1720746049920,20.0,136.18,136.13,10.0]
[1720746050315,32.7,136.22,136.16,7.3437]
[1720746050512,7.3417,136.21,136.16,7.3437]
[1720746051030,7.3412,136.22,136.17,10.0]
[1720746051230,7.3414,136.22,136.17,10.0]